bitfinex-derivatives/quotes_BTCF0:USTF0_20241019
["timestamp","ask_amount","ask_price","bid_price","bid_amount"]
[1729296002639,0.04640882,68468.0,68459.0,0.0001]
[1729296004125,0.04640882,68468.0,68459.0,0.3609]
[1729296004537,0.3608,68465.0,68459.0,0.3609]
[1729296004739,0.0636,68464.0,68459.0,0.0001]
[1729296005240,0.0636,68464.0,68457.0,0.0001]
[1729296005429,0.3608,68459.0,68457.0,0.0001]
[1729296006037,0.08694971,68458.0,68457.0,0.0001]
[1729296006235,0.0636,68464.0,68457.0,0.0001]
[1729296006437,0.3608,68466.0,68459.0,0.0001]
[1729296006630,0.3608,68466.0,68461.0,0.0001]
[1729296006832,0.01310882,68468.0,68462.0,0.3608]
[1729296007130,0.0637,68473.0,68463.0,0.0001]
[1729296007330,0.0637,68473.0,68468.0,0.0001]
[1729296007740,0.07702798,68473.0,68468.0,0.0001]
[1729296008538,0.0301,68472.0,68468.0,0.0001]
[1729296012543,0.3608,68469.0,68468.0,0.0001]
[1729296015432,0.0301,68472.0,68468.0,0.0001]
[1729296017128,0.3608,68478.0,68468.0,0.0001]
[1729296017334,0.3608,68478.0,68472.0,0.0001]
[1729296018342,0.37412088,68478.0,68472.0,0.0001]
[1729296019231,0.01332088,68478.0,68472.0,0.0001]
[1729296019435,0.3608,68475.0,68472.0,0.0001]
[1729296019841,0.0654,68482.0,68472.0,0.0001]
[1729296020143,0.0654,68482.0,68475.0,0.0001]
[1729296020849,0.079024,68482.0,68475.0,0.0001]
[1729296023246,0.3608,68481.0,68475.0,0.0001]
[1729296023842,0.079024,68482.0,68475.0,0.0001]
[1729296024043,0.3608,68481.0,68476.0,0.0001]
[1729296024345,0.079024,68482.0,68476.0,0.0001]
[1729296024545,0.3608,68481.0,68476.0,0.0002]
[1729296029046,0.079024,68482.0,68476.0,0.0002]
[1729296029948,0.3608,68481.0,68476.0,0.0002]
[1729296031150,0.07301,68480.0,68476.0,0.0002]
[1729296031453,0.3608,68481.0,68476.0,0.0002]
[1729296031842,0.073013,68477.0,68476.0,0.0002]
[1729296034043,0.3608,68481.0,68476.0,0.0002]
[1729296034044,0.07301,68480.0,68476.0,0.0002]
[1729296034446,0.073012,68478.0,68476.0,0.0002]
[1729296034841,0.3608,68477.0,68476.0,0.0002]
[1729296040053,0.433813,68477.0,68476.0,0.0002]
[1729296040757,1.12070696,68477.0,68476.0,0.0002]
[1729296041352,0.52070696,68477.0,68476.0,0.0002]
[1729296042559,0.15990696,68477.0,68476.0,0.0002]
[1729296042755,0.52070696,68477.0,68476.0,0.0002]
[1729296042961,0.15990696,68477.0,68476.0,0.0002]
[1729296043461,0.52070696,68477.0,68476.0,0.0002]
[1729296044153,0.52068637,68477.0,68476.0,0.0002]
[1729296045359,0.52079598,68477.0,68476.0,0.0002]
[1729296045755,0.15999598,68477.0,68476.0,0.0002]
[1729296045957,0.52079598,68477.0,68476.0,0.0002]
[1729296046556,0.52079598,68477.0,68475.0,6.781e-05]
[1729296046557,0.073014,68476.0,68475.0,6.781e-05]
[1729296046859,0.52079698,68476.0,68475.0,6.781e-05]
[1729296047053,1.033814,68476.0,68475.0,6.781e-05]
[1729296048255,0.433814,68476.0,68475.0,6.781e-05]
[1729296048459,0.52082461,68476.0,68475.0,6.781e-05]
[1729296048863,0.433814,68476.0,68475.0,6.781e-05]
[1729296050857,0.52081144,68476.0,68475.0,6.781e-05]
[1729296051470,1.033814,68476.0,68475.0,6.781e-05]
[1729296052655,1.55864919,68476.0,68475.0,6.781e-05]
[1729296053862,1.19784919,68476.0,68475.0,6.781e-05]
[1729296054067,1.91944919,68476.0,68475.0,6.781e-05]
[1729296054668,2.32860919,68476.0,68475.0,6.781e-05]
[1729296055367,3.19740919,68476.0,68475.0,6.781e-05]
[1729296055956,2.47580919,68476.0,68475.0,6.781e-05]
[1729296056155,3.19740919,68476.0,68475.0,6.781e-05]
[1729296058174,0.3608,68476.0,68475.0,6.781e-05]
[1729296058361,0.3608,68476.0,68475.0,0.09256781]
[1729296058558,0.3608,68476.0,68475.0,0.16558281]
[1729296058559,0.3109,68476.0,68475.0,0.16558281]
[1729296058866,0.0024,68477.0,68476.0,0.073014]
[1729296059476,0.0024,68477.0,68475.0,0.09256781]
[1729296061068,0.0024,68477.0,68476.0,0.073014]
[1729296065467,0.3632,68477.0,68476.0,0.073014]
[1729296068081,0.37649709,68477.0,68476.0,0.073014]
[1729296073485,0.44951009,68477.0,68475.0,0.03006781]
[1729296073678,0.44951009,68477.0,68475.0,6.781e-05]
[1729296074275,0.073014,68476.0,68475.0,6.781e-05]
[1729296074779,0.103914,68476.0,68475.0,6.781e-05]
[1729296094281,0.323914,68476.0,68475.0,6.781e-05]
[1729296094480,0.073017,68473.0,68472.0,0.0001]
[1729296094681,0.6305155,68473.0,68472.0,0.0001]
[1729296094882,1.2305155,68473.0,68472.0,0.0001]
[1729296095783,1.50627915,68473.0,68472.0,0.0001]
[1729296095988,1.86707915,68473.0,68472.0,0.0001]
[1729296097291,1.14547915,68473.0,68472.0,0.0001]
[1729296097596,1.86707915,68473.0,68472.0,0.0001]
[1729296098392,1.26707915,68473.0,68472.0,0.0001]
[1729296100189,2.30519915,68473.0,68472.0,0.0001]
[1729296101086,2.30496812,68473.0,68472.0,0.0001]
[1729296102700,3.17376812,68473.0,68472.0,0.0001]
[1729296104989,2.45216812,68473.0,68472.0,0.0001]
[1729296105199,3.17376812,68473.0,68472.0,0.0001]
[1729296105503,3.17376349,68473.0,68472.0,0.0001]
[1729296106298,3.1737713,68473.0,68472.0,0.0001]
[1729296108591,2.3049713,68473.0,68472.0,0.0001]
[1729296111205,1.8668335,68473.0,68472.0,0.0001]
[1729296113003,1.1452335,68473.0,68472.0,0.0001]
[1729296113504,1.8668335,68473.0,68472.0,0.0001]
[1729296115301,0.5452335,68473.0,68472.0,0.0001]
[1729296115807,1.2668335,68473.0,68472.0,0.0001]
[1729296117402,0.5452335,68473.0,68472.0,0.0001]
[1729296117594,1.2668335,68473.0,68472.0,0.0001]
[1729296118904,0.5452335,68473.0,68472.0,0.0001]
[1729296119112,1.2668335,68473.0,68472.0,0.0001]
[1729296119304,1.1568335,68473.0,68472.0,0.0001]
[1729296120603,1.07038065,68473.0,68472.0,0.0001]
[1729296120809,1.1569185,68473.0,68472.0,0.0001]
[1729296123406,1.2669185,68473.0,68472.0,0.0001]
[1729296124704,0.073022,68469.0,68468.0,0.0001]
[1729296124900,0.183022,68469.0,68468.0,0.0001]
[1729296125112,0.26955985,68469.0,68468.0,0.0001]
[1729296128510,0.073023,68468.0,68463.0,0.103028]
[1729296128713,0.44733785,68467.0,68463.0,0.103028]
[1729296128909,0.3608,68467.0,68463.0,0.103028]
[1729296132905,0.37414129,68467.0,68463.0,0.103028]
[1729296137017,0.37414129,68467.0,68463.0,0.03]
[1729296137215,0.37414129,68467.0,68466.0,0.073025]
[1729296141817,0.0024,68476.0,68466.0,1.39896]
[1729296142123,0.0024,68476.0,68475.0,0.183015]
[1729296143718,0.01587169,68476.0,68475.0,0.183015]
[1729296143925,0.0024,68476.0,68475.0,0.183015]
[1729296145327,0.07301,68481.0,68476.0,0.073014]
[1729296145525,0.07301,68481.0,68477.0,0.0307]
[1729296145828,0.07301,68481.0,68477.0,0.103712]
[1729296146216,0.073007,68483.0,68478.0,0.073012]
[1729296146515,0.073009,68481.0,68477.0,0.103813]
[1729296147123,0.073009,68481.0,68477.0,0.464613]
[1729296147429,0.11,68484.0,68477.0,0.3916]
[1729296147630,0.07301,68481.0,68478.0,0.0001]
[1729296147924,0.073011,68480.0,68478.0,0.0001]
[1729296149425,0.073011,68479.0,68478.0,0.0001]
[1729296154019,0.52008704,68479.0,68478.0,0.0001]
[1729296154534,0.433811,68479.0,68478.0,0.0001]
[1729296155929,0.073011,68479.0,68478.0,0.0001]
[1729296156135,0.433811,68479.0,68478.0,0.0001]
[1729296157131,0.073011,68479.0,68478.0,0.0001]
[1729296157929,0.3608,68480.0,68478.0,0.0001]
[1729296158123,0.49564171,68485.0,68480.0,0.07301]
[1729296158329,0.11,68482.0,68480.0,0.07331]
[1729296158627,0.49564171,68485.0,68480.0,0.07331]
[1729296158935,0.11,68484.0,68480.0,0.07351]
[1729296160034,0.11,68484.0,68480.0,0.0005]
[1729296160235,0.073007,68483.0,68480.0,0.0005]
[1729296161530,0.073008,68482.0,68480.0,0.0005]
[1729296162629,0.073009,68481.0,68480.0,0.0005]
[1729296172430,0.073006,68484.0,68480.0,0.0005]
[1729296172626,0.42263671,68485.0,68483.0,0.183007]
[1729296173032,0.42263671,68485.0,68484.0,0.073006]
[1729296175642,0.42263671,68485.0,68483.0,0.11]
[1729296176234,0.42263671,68485.0,68483.0,0.183006]
[1729296176437,0.42263671,68485.0,68483.0,0.11]
[1729296177136,0.42263671,68485.0,68484.0,0.073006]
[1729296183540,0.42263671,68485.0,68484.0,0.183006]
[1729296183746,0.42263671,68485.0,68482.0,0.3608]
[1729296184054,0.49564171,68485.0,68482.0,0.3608]
[1729296184443,0.42263671,68485.0,68482.0,0.3608]
[1729296184644,0.073007,68483.0,68482.0,0.3608]
[1729296186543,0.073007,68483.0,68482.0,0.433808]
[1729296193553,0.0332,68484.0,68483.0,0.073007]
[1729296199250,0.01343671,68485.0,68484.0,0.073006]
[1729296199558,0.072997,68492.0,68489.0,0.073]
[1729296199759,0.072997,68492.0,68489.0,0.183]
[1729296200149,0.033,68494.0,68491.0,0.072998]
[1729296200350,0.033,68494.0,68492.0,0.11]
[1729296200351,0.08717986,68493.0,68492.0,0.11]
[1729296202351,0.08717986,68493.0,68491.0,0.072998]
[1729296202658,0.08717986,68492.0,68491.0,0.072998]
[1729296203156,0.08717986,68493.0,68489.0,0.1101]
[1729296203360,0.08717986,68492.0,68489.0,0.1831]
[1729296203566,0.105995,68494.0,68489.0,0.1831]
[1729296203758,0.0872033,68493.0,68489.0,0.1831]
[1729296204064,0.0872033,68492.0,68489.0,0.1831]
[1729296204269,0.105995,68494.0,68489.0,0.1831]
[1729296204460,0.08719888,68493.0,68489.0,0.1832]
[1729296204663,0.08719888,68492.0,68489.0,0.1832]
[1729296204959,0.105995,68494.0,68489.0,0.1832]
[1729296205166,0.08719633,68493.0,68489.0,0.1833]
[1729296205352,0.08719633,68492.0,68489.0,0.1833]
[1729296205554,0.105995,68494.0,68489.0,0.1833]
[1729296205755,0.08719226,68493.0,68489.0,0.1834]
[1729296206057,0.105995,68494.0,68489.0,0.1834]
[1729296206260,0.08719225,68493.0,68490.0,0.0001]
[1729296206463,0.08719225,68492.0,68490.0,0.0001]
[1729296206663,0.072997,68493.0,68490.0,0.0001]
[1729296206863,0.08718624,68492.0,68490.0,0.0001]
[1729296207063,0.182997,68493.0,68490.0,0.0001]
[1729296207659,0.11,68493.0,68490.0,0.073099]
[1729296208460,0.182996,68493.0,68490.0,0.0001]
[1729296208862,0.11,68493.0,68490.0,0.073099]
[1729296209060,0.11,68493.0,68490.0,0.0001]
[1729296209261,0.182996,68493.0,68490.0,0.0001]
[1729296210168,0.072996,68493.0,68490.0,0.0001]
[1729296210571,0.033,68494.0,68491.0,0.072998]
[1729296215369,0.033,68494.0,68492.0,0.182997]
[1729296216265,0.033,68494.0,68493.0,0.072996]
[1729296216469,0.01327439,68496.0,68492.0,0.11]
[1729296216769,0.40908,68498.0,68495.0,0.11]
[1729296216971,0.40908,68498.0,68497.0,0.072992]
[1729296217269,0.42260372,68498.0,68497.0,0.072992]
[1729296219072,0.40908,68498.0,68497.0,0.072992]
[1729296219370,0.27564455,68508.0,68497.0,1.14796]
[1729296219673,0.01362008,68509.0,68508.0,0.07298]
[1729296219967,0.072975,68513.0,68509.0,0.072978]
[1729296220178,0.072975,68513.0,68511.0,0.11]
[1729296220865,0.0319,68514.0,68512.0,0.072975]
[1729296221360,0.0319,68514.0,68513.0,0.11]
[1729296221361,0.01369636,68514.0,68513.0,0.11]
[1729296221675,0.3608,68519.0,68513.0,0.11]
[1729296221975,0.3608,68519.0,68518.0,0.11]
[1729296222169,0.3608,68519.0,68518.0,0.05888122]
[1729296223072,0.37429614,68519.0,68518.0,0.05888122]
[1729296225858,0.01349614,68519.0,68518.0,0.05888122]
[1729296226062,0.072967,68520.0,68518.0,0.05888122]
[1729296226367,0.464065,68522.0,68518.0,0.05888122]
[1729296226672,0.47722131,68522.0,68518.0,0.05888122]
[1729296226868,0.40425631,68522.0,68518.0,0.05888122]
[1729296227070,0.40425631,68522.0,68521.0,0.11]
[1729296227372,0.04345631,68522.0,68521.0,0.11]
[1729296229761,0.04345631,68522.0,68521.0,0.182966]
[1729296240276,0.04345631,68522.0,68521.0,0.072966]
[1729296240487,0.04345631,68522.0,68521.0,0.182966]
[1729296241070,0.04345631,68522.0,68518.0,0.3608]
[1729296241382,0.11,68519.0,68518.0,0.3608]
[1729296242578,0.1421,68521.0,68518.0,0.3608]
[1729296243683,0.1421,68521.0,68518.0,0.433769]
[1729296243977,0.1421,68521.0,68518.0,0.072969]
[1729296244586,0.072969,68519.0,68517.0,0.11]
[1729296245175,0.072969,68519.0,68516.0,0.072971]
[1729296245576,0.072969,68519.0,68517.0,0.07297]
[1729296247689,0.1421,68521.0,68517.0,0.07297]
[1729296247878,0.072969,68518.0,68517.0,0.07297]
[1729296248278,0.1421,68521.0,68515.0,0.11]
[1729296248588,0.215066,68521.0,68518.0,0.072969]
[1729296248784,0.1421,68521.0,68514.0,0.3608]
[1729296248984,0.11,68516.0,68509.0,0.072979]
[1729296249283,0.072977,68512.0,68511.0,0.072977]
[1729296250688,0.072977,68512.0,68511.0,0.182977]
[1729296251587,0.072977,68512.0,68511.0,0.11]
[1729296255293,0.08654018,68512.0,68511.0,0.11]
[1729296255982,0.08654018,68512.0,68511.0,0.182977]
[1729296256595,0.01356318,68512.0,68511.0,0.182977]
[1729296256785,0.11,68517.0,68511.0,0.182977]
[1729296256786,0.072974,68514.0,68511.0,0.182977]
[1729296257590,0.072974,68514.0,68512.0,0.072976]
[1729296258092,0.3608,68520.0,68511.0,0.11]
[1729296258298,0.072972,68516.0,68511.0,0.182976]
[1729296260699,0.072972,68516.0,68512.0,0.072975]
[1729296263001,0.07297,68518.0,68513.0,0.072974]
[1729296263294,0.07297,68518.0,68515.0,0.11]
[1729296263502,0.01333091,68520.0,68517.0,0.07297]
[1729296263694,0.3608,68521.0,68515.0,0.11]
[1729296263902,0.3608,68521.0,68518.0,0.072969]
[1729296264400,0.08614988,68520.0,68518.0,0.072969]
[1729296264601,0.37391356,68521.0,68518.0,0.072969]
[1729296265595,0.01311356,68521.0,68519.0,0.11]
[1729296265896,0.0303,68522.0,68520.0,0.072967]
[1729296266597,0.0303,68522.0,68519.0,0.05888266]
[1729296267196,0.04384952,68522.0,68519.0,0.05888266]
[1729296268590,0.072967,68520.0,68519.0,0.05888266]
[1729296271408,0.15844835,68520.0,68519.0,0.05888266]
[1729296273600,0.072967,68520.0,68519.0,0.05888266]
[1729296274003,0.072967,68520.0,68515.0,0.11]
[1729296275402,0.072969,68519.0,68515.0,0.11]
[1729296277208,0.11,68521.0,68515.0,0.11]
[1729296277402,0.07297,68518.0,68514.0,0.072973]
[1729296278495,0.11,68517.0,68511.0,0.072976]
[1729296278806,0.072976,68512.0,68506.0,0.3608]
[1729296279107,0.072978,68511.0,68507.0,0.07298]
[1729296279306,0.072978,68510.0,68508.0,0.07298]
[1729296281309,0.072978,68510.0,68508.0,0.18298]
[1729296282097,0.072978,68510.0,68509.0,0.072979]
[1729296285414,0.072979,68509.0,68508.0,0.11]
[1729296285614,0.072979,68509.0,68508.0,0.18298]
[1729296287306,0.072979,68509.0,68502.0,0.0312]
[1729296287307,0.072984,68506.0,68505.0,0.072983]
[1729296292315,0.072984,68506.0,68505.0,0.182983]
[1729296293721,0.08651664,68506.0,68505.0,0.182983]
[1729296297220,0.08651664,68506.0,68503.0,0.3608]
[1729296297221,0.19651664,68506.0,68503.0,0.3608]
[1729296297423,0.072984,68504.0,68495.0,0.36156]
[1729296297718,0.11,68500.0,68495.0,0.3608]
[1729296297915,0.072993,68496.0,68495.0,0.3608]
[1729296298113,0.072993,68496.0,68495.0,0.433794]
[1729296301222,0.072993,68496.0,68495.0,0.3608]
[1729296302023,0.072994,68495.0,68490.0,0.0001]
[1729296303032,0.072994,68495.0,68490.0,0.073098]
[1729296303230,0.072994,68495.0,68490.0,0.0001]
[1729296313437,0.182994,68495.0,68490.0,0.0001]
[1729296313844,0.072994,68495.0,68492.0,0.1101]
[1729296314337,0.072994,68495.0,68492.0,0.0001]
[1729296318154,0.075394,68495.0,68492.0,0.0001]
[1729296322659,0.185394,68495.0,68492.0,0.0001]
[1729296338574,0.072998,68491.0,68486.0,0.543803]
[1729296341770,0.1124,68495.0,68486.0,0.4708]
[1729296341965,0.08353919,68494.0,68486.0,0.3608]
[1729296342173,0.073003,68487.0,68485.0,0.073004]
[1729296342372,0.073003,68487.0,68485.0,0.433804]
[1729296343276,0.073005,68485.0,68482.0,0.213907]
[1729296343575,0.073005,68485.0,68484.0,0.073006]
[1729296350885,0.08660654,68485.0,68484.0,0.073006]
[1729296363083,0.07301,68480.0,68479.0,0.36156]
[1729296363402,0.07301,68480.0,68479.0,0.3608]
[1729296363403,0.18301,68480.0,68479.0,0.3608]
[1729296364589,0.18301,68480.0,68476.0,0.00084]
[1729296364590,0.073013,68477.0,68476.0,0.00084]
[1729296364784,0.653813,68477.0,68476.0,0.00084]
[1729296364986,0.73647762,68477.0,68476.0,0.00084]
[1729296365293,0.073017,68473.0,68470.0,0.00076]
[1729296365484,0.183017,68473.0,68470.0,0.00076]
[1729296365687,0.183017,68473.0,68467.0,0.3608]
[1729296367395,0.183017,68473.0,68467.0,0.433823]
[1729296369190,0.183017,68473.0,68467.0,0.434623]
[1729296370589,0.19640822,68473.0,68467.0,0.434623]
[1729296374289,0.19640822,68473.0,68467.0,0.3616]
[1729296381098,0.073019,68472.0,68467.0,0.3613905]
[1729296381301,0.11,68468.0,68467.0,0.3605905]
[1729296387900,0.11,68468.0,68467.0,0.4336145]
[1729296391606,0.183023,68468.0,68467.0,0.3605905]
[1729296391810,0.183023,68468.0,68467.0,0.4336145]
[1729296392202,0.11,68468.0,68467.0,0.4336145]
[1729296392401,0.073021,68470.0,68467.0,0.3605905]
[1729296392601,0.073021,68470.0,68468.0,0.073022]
[1729296393807,0.073021,68470.0,68469.0,0.073022]
[1729296395909,0.08632061,68470.0,68469.0,0.073022]
[1729296410814,0.01329961,68470.0,68469.0,0.073022]
[1729296411021,0.11,68471.0,68469.0,0.073022]
[1729296411921,0.11,68471.0,68463.0,0.3608]
[1729296412119,0.183027,68464.0,68463.0,0.3608]
[1729296412316,0.11,68464.0,68463.0,0.3608]
[1729296412514,0.11,68464.0,68463.0,0.3584]
[1729296413828,0.11,68464.0,68463.0,0.431428]
[1729296414019,0.11,68464.0,68463.0,0.073028]
[1729296417517,0.12365622,68464.0,68463.0,0.073028]
[1729296418923,0.19668322,68464.0,68463.0,0.073028]
[1729296421029,0.073029,68463.0,68460.0,0.3608]
[1729296421230,0.01365622,68464.0,68463.0,0.073028]
[1729296421419,0.11,68464.0,68463.0,0.073028]
[1729296437945,0.073026,68465.0,68464.0,0.073027]
[1729296438346,0.183026,68465.0,68464.0,0.073027]
[1729296441341,0.073028,68464.0,68460.0,0.43383]
[1729296441547,0.07303,68461.0,68460.0,0.3608]
[1729296442645,0.5808,68463.0,68452.0,0.434599]
[1729296442847,0.073041,68451.0,68449.0,0.073042]
[1729296443047,0.11,68450.0,68449.0,0.073042]
[1729296443238,0.22,68450.0,68445.0,0.36059143]
[1729296443439,0.11,68446.0,68445.0,0.43363843]
[1729296445149,0.183046,68446.0,68445.0,0.43363843]
[1729296447641,0.11,68446.0,68445.0,0.43363843]
[1729296448046,0.11,68446.0,68445.0,0.073047]
[1729296448844,0.183046,68446.0,68442.0,0.43385]
[1729296449046,0.11,68443.0,68442.0,0.43385]
[1729296449551,0.11,68443.0,68442.0,0.07305]
[1729296449957,0.183049,68443.0,68442.0,0.07305]
[1729296451650,0.11,68443.0,68439.0,0.0333]
[1729296451852,0.11,68440.0,68439.0,0.073053]
[1729296452457,0.183053,68440.0,68439.0,0.073053]
[1729296456871,0.1966646,68440.0,68439.0,0.073053]
[1729296457376,0.1966646,68440.0,68435.0,0.0021916]
[1729296457377,0.073057,68436.0,68435.0,0.0752486]
[1729296457675,0.293057,68436.0,68435.0,0.0021916]
[1729296458975,0.293057,68436.0,68435.0,0.0752496]
[1729296460371,0.293057,68436.0,68435.0,0.0021916]
[1729296461287,0.073058,68435.0,68434.0,0.36156]
[1729296461475,0.104558,68435.0,68434.0,0.3608]
[1729296462781,0.324558,68435.0,68434.0,0.3608]
[1729296463374,0.324558,68435.0,68431.0,0.073062]
[1729296463581,0.104558,68435.0,68431.0,0.073062]
[1729296463781,0.11,68432.0,68429.0,0.3608]
[1729296464084,0.11,68432.0,68431.0,0.073062]
[1729296467978,0.12359518,68432.0,68431.0,0.073062]
[1729296472594,0.073063,68430.0,68426.0,0.073067]
[1729296472892,0.11,68427.0,68426.0,0.073067]
[1729296474387,0.11,68427.0,68422.0,0.0316]
[1729296474388,0.073069,68425.0,68422.0,0.0316]
[1729296474594,0.11,68423.0,68422.0,0.104672]
[1729296474788,0.11,68423.0,68422.0,0.102272]
[1729296476393,0.22,68423.0,68422.0,0.102272]
[1729296476589,0.11,68423.0,68422.0,0.102272]
[1729296477494,0.183071,68423.0,68422.0,0.102272]
[1729296478094,0.293071,68423.0,68422.0,0.073072]
[1729296478696,0.183071,68423.0,68422.0,0.073072]
[1729296479196,0.293071,68423.0,68422.0,0.073072]
[1729296479389,0.183071,68423.0,68422.0,0.073072]
[1729296480191,0.19655819,68423.0,68422.0,0.073072]
[1729296480393,0.30655819,68423.0,68422.0,0.073072]
[1729296481601,0.19655819,68423.0,68422.0,0.073072]
[1729296482595,0.30655819,68423.0,68422.0,0.073072]
[1729296483702,0.19655819,68423.0,68422.0,0.073072]
[1729296487392,0.01348719,68423.0,68422.0,0.073072]
[1729296487607,0.073058,68435.0,68434.0,0.073057]
[1729296487796,0.00219247,68437.0,68436.0,0.073057]
[1729296488000,0.0645,68452.0,68436.0,0.073057]
[1729296488001,0.3927,68452.0,68443.0,0.073049]
[1729296488205,0.11,68444.0,68443.0,0.073049]
[1729296489302,0.40944,68456.0,68451.0,0.073041]
[1729296489303,0.01336388,68452.0,68451.0,0.073041]
[1729296489501,0.11,68452.0,68451.0,0.073041]
[1729296490402,0.40944,68456.0,68455.0,0.073037]
[1729296490706,0.40944,68456.0,68455.0,0.183037]
[1729296491104,0.40944,68456.0,68455.0,0.073037]
[1729296498008,0.40944,68456.0,68455.0,0.433837]
[1729296498211,0.11,68460.0,68455.0,0.3608]
[1729296498403,0.11,68457.0,68456.0,0.073035]
[1729296502308,0.11,68457.0,68455.0,0.0001]
[1729296502514,0.073135,68456.0,68455.0,0.0001]
[1729296505719,0.073135,68456.0,68454.0,0.070737]
[1729296506019,0.0001,68455.0,68454.0,0.070737]
[1729296517926,0.0001,68455.0,68450.0,0.073141]
[1729296518125,0.293141,68451.0,68450.0,0.0001]
[1729296518515,0.37360244,68451.0,68441.0,0.00219137]
[1729296518719,0.54385,68442.0,68441.0,0.00219137]
[1729296518916,0.54395,68442.0,68441.0,0.00219137]
[1729296519524,0.65395,68442.0,68441.0,0.00219137]
[1729296519724,0.54395,68442.0,68441.0,0.00219137]
[1729296521126,0.3609,68442.0,68441.0,0.00219137]
[1729296521336,0.4709,68442.0,68440.0,0.073052]
[1729296521532,0.0001,68441.0,68440.0,0.073052]
[1729296522931,0.0001,68441.0,68433.0,0.11]
[1729296523124,0.11,68437.0,68433.0,0.11]
[1729296523532,0.11,68437.0,68436.0,0.073057]
[1729296527234,0.11,68437.0,68426.0,0.36375177]
[1729296527530,0.11,68430.0,68429.0,0.073064]
[1729296530130,0.073066,68428.0,68427.0,0.073066]
[1729296530327,0.183166,68428.0,68427.0,0.073066]
[1729296530639,0.073066,68427.0,68426.0,0.36299177]
[1729296530829,0.073166,68427.0,68426.0,0.36299177]
[1729296532429,0.08689503,68427.0,68426.0,0.36299177]
[1729296533328,0.01382903,68427.0,68426.0,0.43605877]
[1729296535027,0.01382903,68427.0,68426.0,0.07525877]
[1729296535429,0.01382903,68427.0,68426.0,0.18525877]
[1729296537032,0.0001,68427.0,68426.0,0.18525877]
[1729296537544,0.0001,68427.0,68426.0,0.18285877]
[1729296538132,0.0001,68427.0,68426.0,0.54365877]
[1729296540639,0.0001,68428.0,68426.0,0.4708]
[1729296540845,0.11,68439.0,68437.0,0.073055]
[1729296541639,0.1231025,68439.0,68437.0,0.073055]
[1729296541947,0.1961565,68439.0,68437.0,0.073055]
[1729296542333,0.073057,68437.0,68434.0,0.073059]
[1729296542533,0.183058,68435.0,68433.0,0.0001]
[1729296542841,0.183158,68435.0,68433.0,0.0001]
[1729296543041,0.0001,68434.0,68433.0,0.07316]
[1729296557962,0.1101,68434.0,68433.0,0.07316]
[1729296560062,0.1101,68434.0,68433.0,0.0001]
[1729296560268,0.183159,68434.0,68433.0,0.0001]
[1729296562066,0.183159,68434.0,68433.0,0.07316]
[1729296562567,0.183159,68434.0,68433.0,0.0001]
[1729296563771,0.183159,68434.0,68433.0,0.07316]
[1729296565369,0.183159,68434.0,68433.0,0.0001]
[1729296566469,0.183159,68434.0,68433.0,0.07316]
[1729296567572,0.543959,68434.0,68433.0,0.07311]
[1729296567975,0.543959,68434.0,68433.0,5e-05]
[1729296568273,1.582359,68434.0,68433.0,5e-05]
[1729296570083,0.543959,68434.0,68433.0,5e-05]
[1729296573380,0.3609,68434.0,68433.0,0.07311]
[1729296573585,0.4709,68434.0,68433.0,0.07311]
[1729296574282,0.1101,68434.0,68433.0,0.07311]
[1729296577584,0.0001,68434.0,68433.0,0.07311]
[1729296577785,0.1101,68434.0,68433.0,0.07311]
[1729296579585,0.183159,68434.0,68433.0,5e-05]
[1729296591001,0.26305656,68434.0,68433.0,5e-05]
[1729296592592,0.26307725,68434.0,68433.0,5e-05]
[1729296593591,0.183159,68434.0,68433.0,5e-05]
[1729296593895,0.26307281,68434.0,68433.0,5e-05]
[1729296594097,0.183159,68434.0,68433.0,5e-05]
[1729296594891,0.26301977,68434.0,68433.0,5e-05]
[1729296597688,0.18996077,68434.0,68422.0,0.3609]
[1729296597897,0.11,68425.0,68422.0,0.3609]
[1729296598096,0.0001,68423.0,68422.0,0.073172]
[1729296604001,0.01322505,68423.0,68422.0,0.073172]
[1729296604211,0.0001,68423.0,68422.0,0.073172]
[1729296606407,0.0001,68423.0,68422.0,0.433972]
[1729296608006,0.0001,68423.0,68422.0,0.073172]
[1729296608316,0.0001,68423.0,68422.0,0.433972]
[1729296610504,0.01338969,68423.0,68422.0,0.433972]
[1729296610909,0.0001,68423.0,68422.0,0.433972]
[1729296627018,0.0001,68423.0,68422.0,0.543972]
[1729296627329,0.0001,68435.0,68434.0,0.073059]
[1729296627713,0.01337036,68435.0,68434.0,0.073059]
[1729296627913,0.0001,68435.0,68434.0,0.073059]
[1729296633028,0.073062,68431.0,68430.0,0.36166]
[1729296633223,0.543962,68431.0,68430.0,0.0001]
[1729296633421,0.543962,68431.0,68422.0,0.3609]
[1729296633619,0.0001,68423.0,68422.0,0.073171]
[1729296634518,0.183171,68423.0,68422.0,0.073171]
[1729296634720,0.183171,68423.0,68422.0,0.0001]
[1729296635830,0.183171,68423.0,68422.0,0.073172]
[1729296637530,0.1968938,68423.0,68422.0,0.073172]
[1729296648933,0.0138228,68423.0,68422.0,0.183172]
[1729296650631,0.0138228,68423.0,68422.0,0.073172]
[1729296661035,0.0138228,68423.0,68422.0,0.073072]
[1729296665145,0.0868938,68423.0,68422.0,0.073072]
[1729296665347,0.1968938,68423.0,68422.0,0.073072]
[1729296671346,0.5946228,68423.0,68419.0,0.073075]
[1729296671546,0.1101,68420.0,68409.0,0.07527751]
[1729296671746,0.11,68412.0,68411.0,0.073083]
[1729296674554,0.11,68412.0,68411.0,0.07765354]
[1729296674744,0.07308,68415.0,68414.0,0.07308]
[1729296674946,0.18308,68415.0,68414.0,0.43388]
[1729296678263,0.19635674,68415.0,68414.0,0.43388]